fUSD/lending_fUSD_20240523
["ID","MTS","AMOUNT","RATE_DAILY","PERIOD"]
[327818275,1716502930938,-1000.0,0.0003,30]
[327818276,1716502963768,173.94,0.00016046,2]
[327818277,1716503109186,579.449106,0.00016975,2]
[327818278,1716503160314,157.88,0.00013973,2]
[327818295,1716503372441,177.95,0.00027068,30]
[327818296,1716503432291,-155.0,0.00017045,2]
[327818299,1716503432302,-240.87572633,0.00017046,2]
[327818302,1716503432311,-150.0,0.00017258,2]
[327818304,1716503432320,-329.72355342,0.00017259,2]
[327818306,1716503432333,-679.27065086,0.00017259,2]
[327818308,1716503432344,-5137.53228514,0.00017259,2]
[327818310,1716503432355,-3142.88092348,0.00017259,2]
[327818315,1716503432683,-2782.51002855,0.00017259,2]
[327818318,1716503432695,-562.43544538,0.00017259,2]
[327818319,1716503432707,-1266.7972655,0.00017259,2]
[327818322,1716503432720,-801.36554768,0.00017259,2]
[327818324,1716503432731,-308.14008547,0.00017259,2]
[327818326,1716503432743,-3694.22072771,0.00017259,2]
[327818328,1716503432754,-1600.69348217,0.00017259,2]
[327818416,1716503438328,-155.0,0.00017044,2]
[327818417,1716503438341,-528.175201,0.00017259,2]
[327818418,1716503438352,-4881.49199729,0.00017259,2]
[327818420,1716503438362,-763.86,0.00017981,2]
[327818421,1716503438373,-499.99,0.00018984,2]
[327818422,1716503438382,-880.52,0.00018984,2]
[327818423,1716503438392,-210.0,0.00018984,2]
[327818424,1716503438401,-342.49865612,0.00019,2]
[327818425,1716503438411,-370.67,0.00019879,2]
[327818426,1716503438421,-250.0,0.00019899,2]
[327818427,1716503438431,-445.32504803,0.0002,2]
[327818428,1716503438440,-166.91,0.00020028,2]
[327818429,1716503438449,-11005.18109864,0.0002006,2]
[327818430,1716503438458,-23900.0,0.0002007,2]
[327818431,1716503438468,-250.0,0.00020099,2]
[327818432,1716503438477,-166.91,0.00020178,2]
[327818433,1716503438486,-763.86,0.00020245,2]
[327818435,1716503438495,-166.91,0.00020327,2]
[327818437,1716503438504,-240.0,0.00020431,2]
[327818439,1716503438513,-166.91,0.00020476,2]
[327818441,1716503438523,-166.91,0.00020625,2]
[327818443,1716503438532,-166.91,0.00020774,2]
[327818445,1716503438541,-293.0,0.00020882,2]
[327818447,1716503438550,-166.91,0.00020923,2]
[327818449,1716503438559,-1050.0,0.00021,2]
[327818451,1716503438568,-166.91,0.00021072,2]
[327818453,1716503438578,-1000.0,0.00021436,2]
[327818455,1716503438587,-500.0,0.00021506,2]
[327818457,1716503438596,-500.0,0.00021506,2]
[327818459,1716503438606,-500.0,0.00021506,2]
[327818461,1716503438615,-6179.4995,0.00021717,2]
[327818463,1716503438624,-3118.3,0.00021717,2]
[327818465,1716503438633,-10738.69212943,0.00021817,2]
[327818469,1716503438664,-1629.82328996,0.00021817,2]
[327818472,1716503438675,-451.57864314,0.00021817,2]
[327818474,1716503438686,-1992.74934569,0.00021817,2]
[327818476,1716503438697,-823.4450615,0.00021817,2]
[327818478,1716503438708,-3638.90769307,0.00021817,2]
[327818480,1716503438719,-255.07429505,0.00021817,2]
[327818482,1716503438730,-30581.89999992,0.00021817,2]
[327818485,1716503438741,-302.52178472,0.00021817,2]
[327818487,1716503438752,-524.18265939,0.00021817,2]
[327818489,1716503438764,-330.2694009,0.00021817,2]
[327818491,1716503438776,-611.56751101,0.00021817,2]
[327818666,1716503441351,-573.355,0.00021817,2]
[327818668,1716503441363,-1153.24401543,0.00021817,2]
[327818702,1716503443639,-316.5041516,0.00021817,2]
[327818703,1716503443652,-504.17019268,0.00021817,2]
[327818704,1716503443663,-3496.8060811,0.00021817,2]
[327818719,1716503446572,-524.35130645,0.00021817,2]
[327818720,1716503446585,-31346.19883896,0.00021817,2]
[327818721,1716503446596,-341.3672,0.00021817,2]
[327818722,1716503446606,-3336.3254,0.00021898,2]
[327818723,1716503446615,-2500.0,0.00021898,2]
[327818724,1716503446625,-2597.3552,0.00021899,2]
[327818725,1716503446635,-274.73,0.00021918,2]
[327818726,1716503446645,-2000.0,0.00021918,2]
[327818727,1716503446654,-2000.0,0.00021918,2]
[327818728,1716503446664,-250.0,0.00021918,2]
[327818729,1716503446674,-370.67,0.00021998,2]
[327818730,1716503446683,-500.0,0.00021998,2]
[327818731,1716503446693,-500.0,0.00021998,2]
[327818732,1716503446702,-500.0,0.00021998,2]
[327818733,1716503446712,-500.0,0.00021998,2]
[327818734,1716503446721,-500.0,0.00021998,2]
[327818735,1716503446731,-311.02,0.00021998,2]
[327818736,1716503446740,-500.0,0.00021998,2]
[327818737,1716503446750,-500.0,0.00021998,2]
[327818738,1716503446759,-643.43175431,0.00021998,2]
[327818739,1716503446769,-500.0,0.00021998,2]
[327818740,1716503446779,-500.0,0.00021998,2]
[327818741,1716503446788,-500.0,0.00021998,2]
[327818742,1716503446798,-500.0,0.00021998,2]
[327818743,1716503446807,-513.37,0.00021998,2]
[327818744,1716503446817,-500.0,0.00021998,2]
[327818745,1716503446826,-500.0,0.00021998,2]
[327818746,1716503446837,-473.9,0.00021998,2]
[327818747,1716503446847,-254.77593032,0.00021998,2]
[327818748,1716503446856,-500.0,0.00021998,2]
[327818749,1716503446865,-500.0,0.00021998,2]
[327818750,1716503446875,-570.52,0.00021998,2]
[327818751,1716503446885,-500.0,0.00021998,2]
[327818752,1716503446896,-500.0,0.00021998,2]
[327818753,1716503446908,-500.0,0.00021998,2]
[327818754,1716503446917,-500.0,0.00021998,2]
[327818755,1716503446927,-500.0,0.00021998,2]
[327818756,1716503446938,-561.32,0.00021998,2]
[327818757,1716503446947,-500.0,0.00021998,2]
[327818758,1716503446961,-500.0,0.00021998,2]
[327818759,1716503446971,-500.0,0.00021998,2]
[327818760,1716503446982,-500.0,0.00021998,2]
[327818761,1716503446992,-500.0,0.00021998,2]
[327818762,1716503447001,-500.0,0.00021998,2]
[327818763,1716503447011,-500.0,0.00021998,2]
[327818764,1716503447020,-500.0,0.00021998,2]
[327818765,1716503447030,-500.0,0.00021998,2]
[327818766,1716503447039,-500.0,0.00021998,2]
[327818767,1716503447049,-500.0,0.00021998,2]
[327818768,1716503447059,-500.0,0.00021998,2]
[327818769,1716503447068,-500.0,0.00021998,2]
[327818770,1716503447077,-500.0,0.00021998,2]
[327818771,1716503447089,-584.3674559,0.00021998,2]
[327818772,1716503447098,-500.0,0.00021998,2]
[327818773,1716503447107,-620.04,0.00021998,2]
[327818774,1716503447117,-500.0,0.00021998,2]
[327818775,1716503447127,-500.0,0.00021998,2]
[327818776,1716503447137,-532.7,0.00021998,2]
[327818777,1716503447146,-500.0,0.00021998,2]
[327818778,1716503447155,-436.41214321,0.00021998,2]
[327818779,1716503447169,-63.58785679,0.00021998,2]
[327818780,1716503447179,-500.0,0.00021998,2]
[327818781,1716503447189,-500.0,0.00021998,2]
[327818782,1716503447199,-568.40523769,0.00021998,2]
[327818783,1716503447208,-203.25,0.00021998,2]
[327818784,1716503447218,-500.0,0.00021998,2]
[327818785,1716503447228,-500.0,0.00021998,2]
[327818786,1716503447237,-500.0,0.00021998,2]
[327818787,1716503447247,-500.0,0.00021998,2]
[327818788,1716503447256,-507.72,0.00021998,2]
[327818789,1716503447266,-500.0,0.00021998,2]
[327818790,1716503447275,-500.0,0.00021998,2]
[327818791,1716503447286,-500.0,0.00021998,2]
[327818792,1716503447295,-500.0,0.00021998,2]
[327818793,1716503447305,-500.0,0.00021998,2]
[327818794,1716503447314,-500.0,0.00021998,2]
[327818795,1716503447323,-535.9,0.00021998,2]
[327818796,1716503447334,-500.0,0.00021998,2]
[327818797,1716503447343,-500.0,0.00021998,2]
[327818798,1716503447352,-500.0,0.00021998,2]
[327818799,1716503447362,-500.0,0.00021998,2]
[327818800,1716503447371,-500.0,0.00021998,2]
[327818801,1716503447381,-500.0,0.00021998,2]
[327818802,1716503447390,-500.0,0.00021998,2]
[327818803,1716503447399,-577.1,0.00021998,2]
[327818804,1716503447410,-500.0,0.00021998,2]
[327818805,1716503447419,-500.0,0.00021998,2]
[327818806,1716503447429,-500.0,0.00021998,2]
[327818807,1716503447439,-500.0,0.00021998,2]
[327818808,1716503447449,-601.69,0.00021998,2]
[327818809,1716503447458,-500.0,0.00021998,2]
[327818810,1716503447469,-500.0,0.00021998,2]
[327818811,1716503447478,-500.0,0.00021998,2]
[327818812,1716503447488,-500.0,0.00021998,2]
[327818813,1716503447498,-500.0,0.00021998,2]
[327818814,1716503447508,-500.0,0.00021998,2]
[327818815,1716503447518,-500.0,0.00021998,2]
[327818816,1716503447527,-500.0,0.00021998,2]
[327818817,1716503447538,-500.0,0.00021998,2]
[327818818,1716503447547,-500.0,0.00021998,2]
[327818819,1716503447557,-500.0,0.00021998,2]
[327818820,1716503447566,-529.05731374,0.00021998,2]
[327818821,1716503447577,-500.0,0.00021998,2]
[327818822,1716503447587,-500.0,0.00021998,2]
[327818823,1716503447596,-558.52,0.00021998,2]
[327818824,1716503447605,-500.0,0.00021998,2]
[327818825,1716503447614,-500.0,0.00021998,2]
[327818826,1716503447623,-157.24,0.00021998,2]
[327818827,1716503447632,-318.12,0.00021998,2]
[327818828,1716503447641,-500.0,0.00021998,2]
[327818829,1716503447650,-500.0,0.00021998,2]
[327818830,1716503447659,-500.0,0.00021998,2]
[327818831,1716503447668,-500.0,0.00021998,2]
[327818832,1716503447677,-500.0,0.00021998,2]
[327818833,1716503447687,-500.0,0.00021998,2]
[327818834,1716503447697,-500.0,0.00021998,2]
[327818835,1716503447707,-500.0,0.00021998,2]
[327818836,1716503447718,-500.0,0.00021998,2]
[327818837,1716503447729,-525.39,0.00021998,2]
[327818838,1716503447738,-317.77724832,0.00021998,2]
[327818839,1716503447748,-500.0,0.00021998,2]
[327818840,1716503447758,-500.0,0.00021998,2]
[327818841,1716503447993,-500.0,0.00021998,2]
[327818842,1716503448003,-500.0,0.00021998,2]
[327818843,1716503448013,-500.0,0.00021998,2]
[327818844,1716503448022,-500.0,0.00021998,2]
[327818845,1716503448032,-500.0,0.00021998,2]
[327818846,1716503448041,-500.0,0.00021998,2]
[327818847,1716503448051,-500.0,0.00021999,2]
[327818848,1716503448061,-186.58,0.00021999,2]
[327818849,1716503448071,-500.0,0.00021999,2]
[327818850,1716503448080,-500.0,0.00021999,2]
[327818851,1716503448090,-500.0,0.00021999,2]
[327818852,1716503448099,-500.0,0.00021999,2]
[327818853,1716503448109,-500.0,0.00021999,2]
[327818854,1716503448118,-328.28,0.00021999,2]
[327818855,1716503448128,-500.0,0.00021999,2]
[327818856,1716503448139,-500.0,0.00021999,2]
[327818857,1716503448148,-500.0,0.00021999,2]
[327818858,1716503448158,-418.2,0.00021999,2]
[327818859,1716503448168,-211.48,0.00021999,2]
[327818860,1716503448177,-500.0,0.00021999,2]
[327818861,1716503448186,-515.0,0.00021999,2]
[327818862,1716503448195,-500.0,0.00021999,2]
[327818863,1716503448204,-500.0,0.00021999,2]
[327818864,1716503448213,-185.39434226,0.00021999,2]
[327818865,1716503448309,241.55220599,0.00016914,2]
[327818868,1716503529384,1671.79589562,0.00016576,2]
[327818869,1716503549380,328.20410438,0.00016576,2]
[327818870,1716503603362,1000.0,0.00030685,120]
[327818871,1716503624346,1550311.41552323,0.00013,2]
[327818872,1716503645276,21489.75729798,0.000118,2]
[327818873,1716503718433,152.02,0.00013973,2]
[327818875,1716503796803,319333.61267142,0.00013,2]
[327818876,1716503828054,9277.346923,0.00015,2]
[327818877,1716503863660,177.95,0.00027068,30]
[327818878,1716504109712,3000.0,0.0003,30]
[327818879,1716504121289,3000.0,0.0003,30]
[327818880,1716504130412,3000.0,0.0003,30]
[327818881,1716504291552,151.83,0.00013973,2]
[327818882,1716504404935,177.95,0.00027068,30]
[327818920,1716504444352,187.63568957,0.00016999,2]
[327818924,1716504513232,550.0,0.0003,120]
[327818945,1716504632563,-155.0,0.0001709,2]
[327818946,1716504632572,-295.037073,0.0001709,2]
[327818948,1716504632584,-932.40374354,0.0001709,2]
[327818950,1716504632594,-155.0,0.00017091,2]
[327818952,1716504632604,-1206.37071006,0.00017091,2]
[327818954,1716504632614,-2263.8495,0.00017125,2]
[327818956,1716504632623,-150.0,0.00017224,2]
[327818958,1716504632632,-2240.14773157,0.00017225,2]
[327818960,1716504632644,-1677.84463979,0.00017225,2]
[327818963,1716504632655,-749.56,0.00017225,2]
[327818965,1716504632666,-1536.45624291,0.00017225,2]
[327818967,1716504632677,-4000.0,0.00017225,2]
[327818968,1716504632689,-387.99999996,0.00017225,2]
[327818969,1716504633022,-17075.6912,0.00017225,2]
[327818970,1716504633033,-21664.956,0.00017225,2]
[327818971,1716504633045,-13976.62092,0.00017225,2]
[327818972,1716504633056,-14576.71748,0.00017225,2]
[327818974,1716504633070,-16461.34969425,0.00017225,2]
[327818976,1716504633081,-11519.49076386,0.00017225,2]
[327818977,1716504633090,-150.0,0.00017233,2]
[327818979,1716504633100,-7331.36218886,0.00017259,2]
[327818982,1716504633111,-496.346633,0.00017259,2]
[327818984,1716504633122,-730.35536255,0.00017259,2]
[327818987,1716504638879,-2199.76057497,0.00017259,2]
[327818988,1716504639452,-1.15295156,0.00017259,2]
[327818989,1716504639462,-440.01521024,0.00017259,2]
[327818990,1716504639474,-599.19166599,0.00017259,2]
[327818991,1716504639484,-1043.64061414,0.00017259,2]
[327818992,1716504639494,-28846.06772017,0.00017259,2]
[327818993,1716504639505,-5019.44942,0.00017259,2]
[327818994,1716504639517,-3242.46113049,0.00017259,2]
[327818995,1716504639527,-499.99,0.00017534,2]
[327818996,1716504639536,-759.46,0.00018048,2]
[327818997,1716504639546,-3880.70724069,0.000192,2]
[327818998,1716504639555,-1000.0,0.00019324,2]
[327818999,1716504639565,-23900.0,0.00019391,2]
[327819000,1716504639577,-250.0,0.00019393,2]
[327819001,1716504639586,-250.0,0.00019752,2]
[327819002,1716504639595,-207.20660572,0.0002,2]
[327819012,1716504641857,-238.11844231,0.0002,2]
[327819014,1716504641867,-4598.64694327,0.0002,4]
[327819017,1716504641879,-1967.22099079,0.0002,4]
[327819019,1716504641890,-16914.18683517,0.0002,4]
[327819021,1716504641902,-7817.4020183,0.0002,4]
[327819023,1716504641913,-2000.00066063,0.0002,4]
[327819026,1716504641924,-272.12054986,0.0002,4]
[327819075,1716504643665,-338.2522437,0.0002,4]
[327819077,1716504643677,-2702.51724293,0.0002,7]
[327819079,1716504643687,-759.46,0.00020312,2]
[327819082,1716504643697,-1566.41558323,0.00021667,2]
[327819084,1716504643706,-8747.33858079,0.00021698,2]
[327819088,1716504644316,-6471.65612648,0.00021698,2]
[327819092,1716504646851,-155.0,0.00017259,2]
[327819093,1716504646861,-155.0,0.00017259,2]
[327819094,1716504646871,-1658.73135564,0.00021698,2]
[327819095,1716504646882,-1061.0,0.00021698,2]
[327819107,1716504802652,1000.0,0.00030694,120]
[327819108,1716504948896,152.2,0.00027068,30]
[327819109,1716505022983,158.33,0.0001664,2]
[327819110,1716505041552,-1091.72273991,0.00017258,2]
[327819111,1716505046294,1360.69914021,0.0001664,2]
[327819112,1716505048991,404.57811988,0.0001664,2]
[327819113,1716505049014,7116.56239343,0.0001664,2]
[327819114,1716505060989,5217.7007851,0.0001664,2]
[327819115,1716505062930,847.71437643,0.0001664,2]
[327819116,1716505254354,164.0,0.0003,30]
[327819117,1716505275115,152.54,0.00013973,2]
[327819118,1716505588551,12662.80967559,0.00029,30]
[327819140,1716505679731,18000.0,0.0003,30]
[327819141,1716505775928,18000.0,0.000295,30]
[327819142,1716505777229,156.74,0.00013973,2]
[327819143,1716505832637,-1386.26281017,0.00017257,2]
[327819144,1716505832646,-1645.73767932,0.00017258,2]
[327819145,1716505832656,-795.19,0.00018178,2]
[327819146,1716505832667,-150.0,0.0001945,2]
[327819147,1716505832676,-300.0,0.0001945,2]
[327819148,1716505832684,-23900.0,0.0001988,2]
[327819149,1716505832693,-200.0,0.00019881,2]
[327819150,1716505832702,-250.0,0.00019911,2]
[327819151,1716505832710,-1271.76,0.00019952,2]
[327819152,1716505832718,-669.47,0.00019956,2]
[327819153,1716505832726,-500.0,0.0001996,2]
[327819154,1716505832737,-500.0,0.00020086,2]
[327819155,1716505832745,-250.0,0.00020124,2]
[327819156,1716505832754,-150.0,0.00020268,2]
[327819157,1716505832762,-795.19,0.00020442,2]
[327819158,1716505832770,-1000.0,0.00020606,2]
[327819159,1716505832779,-1577.17,0.00020876,2]
[327819160,1716505832787,-630.80094811,0.00020907,3]
[327819161,1716505832795,-1050.0,0.00021,2]
[327819162,1716505832803,-420.0,0.00021191,2]
[327819163,1716505832812,-2011.5939135,0.00021434,2]
[327819164,1716505832821,-210.7626,0.00021496,2]
[327819165,1716505832830,-710.0002,0.00021496,2]
[327819166,1716505832838,-467.8027,0.00021496,2]
[327819167,1716505832846,-1000.0,0.00021498,2]
[327819168,1716505832857,-2500.0,0.00021498,2]
[327819169,1716505832866,-1024.96357006,0.00021518,2]
[327819170,1716505832875,-168.44,0.00021588,3]
[327819171,1716505832883,-505.33,0.00021588,3]
[327819172,1716505832891,-1501.77727144,0.00021595,2]
[327819173,1716505832900,-57022.7415,0.00021596,2]
[327819174,1716505832910,-4794.9166,0.00021598,2]
[327819175,1716505832918,-497.4192,0.00021598,2]
[327819176,1716505832926,-97683.3432,0.00021598,2]
[327819177,1716505833166,-500.0,0.00021663,2]
[327819178,1716505833190,-529.06734071,0.00021694,2]
[327819179,1716505833200,-155.0,0.00021694,2]
[327819180,1716505833209,-790.00185035,0.00021695,2]
[327819181,1716505833221,-155.06276267,0.00021696,2]
[327819182,1716505833235,-283.72371629,0.00021696,2]
[327819183,1716505833245,-155.63530795,0.00021696,2]
[327819184,1716505833255,-107974.78793873,0.00021696,2]
[327819185,1716505833264,-1226.65434888,0.00021697,2]
[327819186,1716505833273,-4598.92098686,0.00021697,2]
[327819187,1716505833282,-1791.07423,0.00021698,2]
[327819188,1716505833292,-19361.370666,0.00021763,2]
[327819189,1716505833301,-15227.899144,0.00021763,2]
[327819190,1716505833310,-677.647206,0.00021763,2]
[327819191,1716505833319,-333.425371,0.00021763,2]
[327819192,1716505833328,-170.843786,0.00021763,2]
[327819193,1716505833337,-466.917027,0.00021763,2]
[327819194,1716505833347,-314.73269517,0.00021763,2]
[327819195,1716505833361,-335.55356,0.00021763,2]
[327819196,1716505833372,-2942.69004989,0.00021763,2]
[327819197,1716505833383,-400.0,0.00021763,2]
[327819198,1716505833395,-5309.69501094,0.00021763,2]
[327819199,1716505833404,-596.0,0.000218,2]
[327819200,1716505833414,-401.52663989,0.00021817,2]
[327819201,1716505833423,-321.38244099,0.00021817,2]
[327819202,1716505833432,-595.8,0.00021917,2]
[327819203,1716505833440,-500.0,0.00021917,2]
[327819204,1716505833450,-646.9,0.00021917,2]
[327819205,1716505833459,-570.31583367,0.00021917,2]
[327819206,1716505833468,-499.57832717,0.00021917,2]
[327819207,1716505833477,-500.0,0.00021917,2]
[327819208,1716505833486,-458.61,0.00021917,2]
[327819209,1716505833497,-237.48757738,0.00021917,2]
[327819210,1716505833509,-262.51242262,0.00021917,2]
[327819211,1716505833518,-307.85,0.00021917,2]
[327819212,1716505833528,-318.00519885,0.00021917,2]
[327819213,1716505833563,-181.99480115,0.00021917,2]
[327819214,1716505833572,-396.41,0.00021917,2]
[327819215,1716505833582,-389.42404453,0.00021917,2]
[327819216,1716505833593,-110.57595547,0.00021917,2]
[327819217,1716505833602,-516.18969613,0.00021917,2]
[327819218,1716505833613,-500.0,0.00021917,2]
[327819219,1716505833622,-500.0,0.00021917,2]
[327819220,1716505833631,-193.29,0.00021917,2]
[327819221,1716505833640,-537.77,0.00021917,2]
[327819222,1716505833650,-239.05138011,0.00021917,2]
[327819223,1716505833664,-545.71749236,0.00021917,2]
[327819224,1716505833674,-500.0,0.00021917,2]
[327819225,1716505833683,-500.0,0.00021917,2]
[327819226,1716505833692,-500.0,0.00021917,2]
[327819227,1716505833703,-500.0,0.00021917,2]
[327819228,1716505833712,-500.0,0.00021917,2]
[327819229,1716505833721,-500.0,0.00021917,2]
[327819230,1716505833730,-500.0,0.00021917,2]
[327819231,1716505833741,-500.0,0.00021917,2]
[327819232,1716505833751,-500.0,0.00021917,2]
[327819233,1716505833760,-157.83871548,0.00021917,2]
[327819234,1716505833770,-500.0,0.00021917,2]
[327819235,1716505833779,-500.0,0.00021917,2]
[327819236,1716505833789,-202.93,0.00021917,2]
[327819237,1716505833798,-500.0,0.00021917,2]
[327819238,1716505833807,-500.0,0.00021917,2]
[327819239,1716505833817,-500.0,0.00021917,2]
[327819240,1716505833826,-181.04,0.00021917,2]
[327819241,1716505833835,-500.0,0.00021917,2]
[327819242,1716505833845,-500.0,0.00021917,2]
[327819243,1716505833856,-265.55510932,0.00021917,2]
[327819244,1716505833865,-172.27,0.00021917,2]
[327819245,1716505833875,-207.97,0.00021917,2]
[327819246,1716505833884,-492.41,0.00021917,2]
[327819247,1716505833893,-500.0,0.00021917,2]
[327819248,1716505833903,-500.0,0.00021917,2]
[327819249,1716505833912,-638.62565774,0.00021917,2]
[327819250,1716505833922,-206.15272769,0.00021917,2]
[327819251,1716505833934,-293.84727231,0.00021917,2]
[327819252,1716505833943,-500.0,0.00021917,2]
[327819253,1716505833953,-500.0,0.00021917,2]
[327819254,1716505833962,-500.0,0.00021917,2]
[327819255,1716505833971,-500.0,0.00021917,2]
[327819256,1716505833980,-150.0,0.00021917,2]
[327819257,1716505833990,-500.0,0.00021917,2]
[327819258,1716505833999,-500.0,0.00021917,2]
[327819259,1716505834008,-500.0,0.00021917,2]
[327819260,1716505834018,-500.0,0.00021917,2]
[327819261,1716505834028,-385.66715286,0.00021917,2]
[327819262,1716505834038,-500.0,0.00021917,2]
[327819263,1716505834048,-500.0,0.00021917,2]
[327819264,1716505834058,-166.45,0.00021917,2]
[327819265,1716505834067,-500.0,0.00021917,2]
[327819266,1716505834076,-155.30454673,0.00021917,2]
[327819267,1716505834086,-500.0,0.00021917,2]
[327819268,1716505834096,-500.0,0.00021917,2]
[327819269,1716505834106,-427.71,0.00021917,2]
[327819270,1716505834115,-500.0,0.00021917,2]
[327819271,1716505834124,-500.0,0.00021917,2]
[327819272,1716505834133,-500.0,0.00021917,2]
[327819273,1716505834143,-500.0,0.00021917,2]
[327819274,1716505834154,-173.9145324,0.00021917,2]
[327819275,1716505834164,-500.0,0.00021917,2]
[327819276,1716505834173,-508.96059178,0.00021917,2]
[327819277,1716505834182,-462.14344603,0.00021917,2]
[327819278,1716505834191,-500.0,0.00021917,2]
[327819279,1716505834200,-626.64,0.00021917,2]
[327819280,1716505834209,-500.0,0.00021917,2]
[327819281,1716505834219,-500.0,0.00021917,2]
[327819282,1716505834228,-500.0,0.00021917,2]
[327819283,1716505834239,-500.0,0.00021917,2]
[327819284,1716505834248,-207.35647407,0.00021917,2]
[327819285,1716505834257,-500.0,0.00021917,2]
[327819286,1716505834266,-500.0,0.00021917,2]
[327819287,1716505834275,-379.65,0.00021917,2]
[327819288,1716505834284,-437.98,0.00021917,2]
[327819289,1716505834293,-500.0,0.00021917,2]
[327819290,1716505834302,-500.0,0.00021917,2]
[327819291,1716505834311,-635.31,0.00021917,2]
[327819292,1716505834320,-500.0,0.00021917,2]
[327819293,1716505834329,-500.0,0.00021917,2]
[327819294,1716505834338,-500.0,0.00021917,2]
[327819295,1716505834348,-230.16058319,0.00021917,2]
[327819296,1716505834357,-500.0,0.00021917,2]
[327819297,1716505834366,-500.0,0.00021917,2]
[327819298,1716505834375,-509.87552599,0.00021917,2]
[327819299,1716505834384,-500.0,0.00021917,2]
[327819300,1716505834394,-500.0,0.00021917,2]
[327819301,1716505834403,-500.0,0.00021917,2]
[327819302,1716505834412,-134.72190618,0.00021917,2]
[327819303,1716505834424,-175.73278007,0.00021917,2]
[327819304,1716505834434,-512.27634411,0.00021917,2]
[327819305,1716505834443,-500.0,0.00021917,2]
[327819306,1716505834453,-500.0,0.00021917,2]
[327819307,1716505834463,-500.0,0.00021917,2]
[327819308,1716505834472,-500.0,0.00021917,2]
[327819309,1716505834481,-500.0,0.00021917,2]
[327819310,1716505834490,-500.0,0.00021917,2]
[327819311,1716505834499,-544.3,0.00021917,2]
[327819312,1716505834508,-500.0,0.00021917,2]
[327819313,1716505834517,-500.0,0.00021917,2]
[327819314,1716505834527,-500.0,0.00021917,2]
[327819315,1716505834536,-500.0,0.00021917,2]
[327819316,1716505834545,-500.0,0.00021917,2]
[327819317,1716505834554,-500.0,0.00021917,2]
[327819318,1716505834563,-500.0,0.00021917,2]
[327819319,1716505834572,-500.0,0.00021917,2]
[327819320,1716505834582,-600.0,0.00021917,2]
[327819321,1716505834591,-500.0,0.00021917,2]
[327819322,1716505834601,-500.0,0.00021917,2]
[327819323,1716505834612,-500.0,0.00021917,2]
[327819324,1716505834621,-500.0,0.00021917,2]
[327819325,1716505834631,-500.0,0.00021917,2]
[327819326,1716505834640,-532.90483351,0.00021917,2]
[327819327,1716505834649,-500.0,0.00021917,2]
[327819328,1716505834660,-500.0,0.00021917,2]
[327819329,1716505834672,-500.0,0.00021917,2]
[327819330,1716505834681,-383.31392098,0.00021917,2]
[327819331,1716505834691,-500.0,0.00021917,2]
[327819332,1716505834700,-500.0,0.00021917,2]
[327819333,1716505834710,-500.0,0.00021917,2]
[327819334,1716505834720,-229.21,0.00021917,2]
[327819335,1716505834729,-500.0,0.00021917,2]
[327819336,1716505834739,-500.0,0.00021917,2]
[327819337,1716505834748,-500.0,0.00021917,2]
[327819338,1716505834758,-500.03,0.00021917,2]
[327819339,1716505834767,-500.0,0.00021917,2]
[327819340,1716505834777,-500.0,0.00021917,2]